Cogmind - Beta 13 @@@ ROGUE MODE // 2024.04.21 @ 22:44:10 Player: Mogwok Wargfriend Result: Destroyed by G-47 Trooper with Particle Gun Performance ------------- Evolutions (3) 1500 Regions Visited (4) 800 Robots Destroyed (116) 580 Value Destroyed (2522) 2522 Prototype IDs (12) 240 Alien Tech Used (0) 0 Bonus (169) 169 TOTAL SCORE: 5811 Bonus ------- High Alert Combat Kills 169 Cogmind --------- Core Integrity 0/700 Matter 232/300 Energy 55/100 System Corruption 4% Temperature Hot (296) Movement Flying (35) Location -7/Factory Parts ------- > --- POWER (1) -------- (None) > --- PROPULSION (3) --- Flight Unit VTOL Module > --- UTILITY (7) ------ Target Analyzer Target Analyzer System Shield > --- WEAPON (2) ------- (None) > --- INVENTORY (5) ---- Gauss Rifle Spear Peak State ------------ > --- POWER ------------ Micro Nuclear Core > --- PROPULSION ------- VTOL Module VTOL Module VTOL Module > --- UTILITY ---------- Improved Sensor Array Target Analyzer ECM Suite Improved Propulsion Shielding Hacking Suite System Shield > --- WEAPON ----------- Precision Shock Rifle Improved Assault Rifle > --- INVENTORY -------- Flight Unit Flight Unit Lightning Gun Cooled Pulse Rifle Gauss Rifle [Rating: 35] Favorites ----------- Power Heavy Ion Engine Engine Heavy Ion Engine Power Core Light Nuclear Core Propulsion Compact Wheel Treads Light Treads Wheel Compact Wheel Flight Unit Flight Unit Utility Improved Targeting Computer Device Improved Sensor Array Storage Medium Storage Unit Processor Improved Targeting Computer Hackware Hacking Suite Protection Hardened Medium Armor Plating Weapon Improved Assault Rifle Energy Gun Beam Rifle Energy Cannon Advanced Beam Cannon Ballistic Gun Improved Assault Rifle Launcher Grenade Launcher Piercing Weapon Spear Build | -11 -10 -9 -8 -7 ------- Run | Yrd Mat Mat Mat Fac Slots Evolved 6 | . . 2 2 2 Power . | . . . . . Propulsion 1 | . . . 1 . Utility 5 | . . 2 1 2 Weapon . | . . . . . Parts Attached 104 | 8 11 30 22 33 Power 16 | 1 1 2 4 8 Engine 7 | 1 1 2 2 1 Core 9 | . . . 2 7 Reactor . | . . . . . Propulsion 36 | 4 5 11 5 11 Treads 3 | . . 3 . . Leg . | . . . . . Wheel 19 | 4 5 8 2 . Hover . | . . . . . Flight 14 | . . . 3 11 Utility 26 | 2 2 8 7 7 Device 11 | 1 . 4 3 3 Storage 2 | 1 1 . . . Processor 4 | . 1 1 . 2 Hackware 3 | . . . 1 2 Protection 6 | . . 3 3 . Artifact . | . . . . . Weapon 26 | 1 3 9 6 7 Energy Gun 14 | . 1 5 3 5 Energy Cannon 1 | . . 1 . . Ballistic Gun 8 | 1 1 3 2 1 Ballistic Cannon . | . . . . . Launcher 2 | . 1 . 1 . Special Weapon . | . . . . . Impact Weapon . | . . . . . Slashing Weapon . | . . . . . Piercing Weapon 1 | . . . . 1 Special Melee Weapon . | . . . . . Unidentified Prototypes 8 | . . 3 2 3 Parts Lost 36 | . 3 7 7 19 Power 6 | . . . 2 4 Propulsion 15 | . 2 4 3 6 Utility 9 | . . 2 . 7 Weapon 6 | . 1 1 2 2 Highest Loss Streak 10 | . 2 3 5 10 To Critical Strikes . | . . . . . Average Slot Usage (%) 94 | . 94 98 87 92 Engine 7 | . 14 11 6 . Core 1 | . . . 2 6 Wheel 15 | . 26 19 18 . Flight 5 | . . . 3 22 Device 13 | . 6 7 17 25 Storage 8 | . 14 11 7 . Processor 10 | . 7 17 5 5 Hackware 3 | . . . 4 10 Protection 5 | . . 7 7 6 Energy Gun 7 | . 1 10 5 6 Ballistic Gun 9 | . 13 11 8 6 Launcher 1 | . 8 . . . Naked Turns . | . . . . . Heaviest Build 41 | 13 23 40 41 18 Greatest Support 48 | 32 26 32 48 18 Greatest Overweight (x) 6 | 1 2 6 1 2 Average Overweight (x) . | . . . . . Largest Inventory Capacity 10 | 8 10 10 10 5 Average Capacity 8 | 7 9 10 9 5 Most Carried 10 | 8 10 10 10 5 Average Carried 8 | 5 8 9 8 4 Final Capacity 10 | 8 10 10 5 5 Final Carried 10 | 8 10 10 5 2 Class Distribution -------------------- 88% | Mutant 7% | Hacker-Mutant Dominant Class ---------------- Mutant | -10/Materials Mutant | -9/Materials Mutant | -8/Materials Mutant | -7/Factory Resources | -11 -10 -9 -8 -7 ----------- Run | Yrd Mat Mat Mat Fac Matter Collected 2348 | 316 318 935 507 272 Remotely . | . . . . . Salvage Created 4363 | 161 481 2139 1166 416 Parts 282 | 12 40 124 76 30 Haulers Intercepted 8 | . . 5 3 . Recyclers Shooed 8 | . 2 5 1 . Parts Field Recycled . | . . . . . Retrieved Matter . | . . . . . Parts Self-Destructed . | . . . . . Prevented . | . . . . . Kills | -11 -10 -9 -8 -7 ------- Run | Yrd Mat Mat Mat Fac Combat Hostiles Destroyed 61 | . 11 24 17 9 Melee 2 | . . . . 2 Guns 57 | . 9 24 17 7 AOE 2 | . 2 . . . Classes Destroyed 14 | 2 4 5 2 1 Worker 12 | . 4 5 2 1 Builder 5 | . . 4 1 . Tunneler 6 | 4 . 1 1 . Hauler 8 | . . 5 3 . Recycler 14 | 1 2 10 1 . Mechanic 1 | . . . 1 . Operator 1 | . . 1 . . Watcher 8 | . 3 4 1 . Swarmer 19 | . 6 6 4 3 Grunt 24 | . 5 9 7 3 Duelist 1 | . . 1 . . Sentry 13 | . . 8 4 1 Hunter 2 | . . . 2 . Programmer 2 | . . . . 2 Best Kill Streak 7 | 3 4 7 6 4 Combat Bots Only 4 | . 4 3 4 3 Max Kills in Single Turn 2 | 1 2 2 2 1 Gunslinging 1 | . . 1 1 . Exploded 1 | . 1 . . . Melee 1 | . . . . 1 Uniques/NPCs Destroyed . | . . . . . Combat | -11 -10 -9 -8 -7 -------- Run | Yrd Mat Mat Mat Fac Hostile Shots Fired 451 | . 47 112 100 192 Missed 151 | . 13 29 30 79 Damage Taken 4409 | . 387 1256 1047 1719 Core 1225 | . 134 164 216 711 Absorbed by Shields 100 | . . . . 100 Redirected to Shielding 106 | . . . . 106 Regen/Repaired (Parts) 299 | . 24 90 49 136 Core Remaining (%) 66 | 100 46 59 60 . Volleys Fired 383 | 20 83 136 116 28 Largest 2 | 1 2 2 2 2 Hottest 79 | 20 50 79 79 79 Shots Fired 586 | 20 87 247 176 56 Gun 578 | 20 79 247 176 56 Cannon . | . . . . . Launcher 8 | . 8 . . . Special . | . . . . . Kinetic 367 | 20 78 135 106 28 Thermal 193 | . 1 112 70 10 Explosive 8 | . 8 . . . Electromagnetic 18 | . . . . 18 Robot Hit Streak 30 | 4 11 30 19 7 Robot Miss Streak 4 | 1 4 2 3 4 Penetration Max . | . . . . . Secondary Targets 4 | . . 2 2 . Max Gunslinging Chain 1 | . . 1 1 . Shots Hit Robots 443 | 14 59 189 139 42 Core Hits 187 | 6 32 76 54 19 Critical Kills 1 | . . . . 1 Critical Parts Destroyed 2 | . . 2 . . Critical Strikes 24 | . . 13 8 3 Burn 19 | . . 11 8 . Destroy 3 | . . 2 . 1 Impale 2 | . . . . 2 Melee Attacks 15 | . . . . 15 Impact . | . . . . . Slashing . | . . . . . Piercing 15 | . . . . 15 Sneak Attacks . | . . . . . Combat Hostiles . | . . . . . Follow-up Attacks . | . . . . . Damage Inflicted 7201 | 191 1231 2902 2075 802 Guns 6236 | 191 710 2756 2075 504 Cannons . | . . . . . Explosions 667 | . 521 146 . . Melee 298 | . . . . 298 Ramming . | . . . . . Kinetic 3825 | 191 702 1467 1240 225 Thermal 2367 | . 180 1289 835 63 Explosive 495 | . 349 146 . . Electromagnetic 216 | . . . . 216 Impact . | . . . . . Slashing . | . . . . . Piercing 298 | . . . . 298 Highest Corruption 4 | . . . . 4 Average Corruption 2 | . . . . 2 Corruption Purged . | . . . . . Corruption Blocked . | . . . . . Effects 12 | . . . . 12 Message Errors 2 | . . . . 2 Matter Fused 2 | . . . . 2 Heat Flow Errors 3 | . . . . 3 Energy Discharges 2 | . . . . 2 Data Loss (minor) 1 | . . . . 1 Misfires 1 | . . . . 1 Alerts 1 | . . . . 1 Overload Shots . | . . . . . Overflow Damage 104 | . 15 70 . 19 Projectiles . | . . . . . Explosions 85 | . 15 70 . . Melee 19 | . . . . 19 Knockbacks . | . . . . . Impact . | . . . . . Kinetic . | . . . . . Secondary . | . . . . . Self-Inflicted Damage 147 | . 34 113 . . Shots 2 | . 1 1 . . Rammed . | . . . . . Targets Rammed . | . . . . . Kicked . | . . . . . Crushed . | . . . . . Highest Temperature 422 | . 3 422 50 269 Average Temperature 77 | . 2 99 15 43 Received Heat Transfer 1527 | . 126 417 477 507 Effects 4 | . . 4 . . Shutdowns 2 | . . 2 . . Energy Bleed 1 | . . 1 . . Short Circuit 1 | . . 1 . . Siege Activations . | . . . . . Robots Corrupted . | . . . . . Combat Hostiles . | . . . . . Parts Fried . | . . . . . Impact Corruptions . | . . . . . Robots Melted . | . . . . . Combat Hostiles . | . . . . . Parts Melted 11 | . . 3 7 1 Heat Transferred 7180 | . 187 4181 2664 148 Parts Sabotaged . | . . . . . Parts Stolen . | . . . . . Parts Stripped . | . . . . . Power Chain Reactions . | . . . . . Alert | -11 -10 -9 -8 -7 ------- Run | Yrd Mat Mat Mat Fac Peak Influence 575 | 25 293 575 574 315 Initial 237 | . 16 61 237 196 Average 297 | 7 173 365 448 178 Maximum Alert Level 2 | . 1 2 2 1 Low Security (%) 29 | 100 50 14 . 54 Level 1 39 | . 49 43 18 45 Level 2 31 | . . 41 81 . Level 3 . | . . . . . Level 4 . | . . . . . Level 5 . | . . . . . High Security . | . . . . . Max Security . | . . . . . Squads Dispatched 18 | . 1 5 6 6 Investigation 6 | . 1 1 . 4 Extermination 2 | . . . . 2 Reinforcement 3 | . . 3 . . Assault 1 | . . 1 . . Garrison 6 | . . . 6 . Intercept . | . . . . . Searches Triggered . | . . . . . Construction Impeded 1 | . . 1 . . Haulers Reinforced . | . . . . . Active Scanning Responses . | . . . . . Cargo Convoy Interrupts . | . . . . . Stealth | -11 -10 -9 -8 -7 --------- Run | Yrd Mat Mat Mat Fac Distress Signals 8 | . 3 3 2 . Communications Jammed . | . . . . . Distress Signals . | . . . . . Times Spotted 109 | . 17 41 23 28 Peak Tracking Total 8 | . 5 5 5 8 Tactical Retreats 9 | . 1 4 1 3 Traps | -11 -10 -9 -8 -7 ------- Run | Yrd Mat Mat Mat Fac Traps Triggered 4 | . . 1 . 3 Indirectly . | . . . . . Trap Hack Attempts . | . . . . . Triggered . | . . . . . Disarmed . | . . . . . Reprogrammed . | . . . . . Reused . | . . . . . Traps Extracted . | . . . . . Installed . | . . . . . Triggered . | . . . . . Machines | -11 -10 -9 -8 -7 ---------- Run | Yrd Mat Mat Mat Fac Machines Disabled 9 | . 5 3 1 . Max in Single Turn 3 | . 3 2 1 . Machines Repaired . | . . . . . Machines Dismantled . | . . . . . Machines Sabotaged . | . . . . . Overloaded Fab Kills . | . . . . . Hacking | -11 -10 -9 -8 -7 --------- Run | Yrd Mat Mat Mat Fac Machines Accessed 40 | . 9 12 5 14 Terminals 26 | . 7 7 2 10 Fabricators . | . . . . . Repair Stations 6 | . 1 2 1 2 Recycling Units 6 | . 1 2 1 2 Scanalyzers 1 | . . 1 . . Garrison Access 1 | . . . 1 . Total Hacks 130 | . 35 35 18 42 Successful 62 | . 18 16 8 20 Failed 67 | . 17 19 10 21 Catastrophic 6 | . 1 4 . 1 Database Lockouts 1 | . . . . 1 Manual 94 | . 27 23 13 31 Terminals 81 | . 26 18 7 30 Fabricators . | . . . . . Repair Stations 22 | . 5 5 5 7 Recycling Units 22 | . 4 11 2 5 Scanalyzers 1 | . . 1 . . Garrison Access 4 | . . . 4 . Terminal Hacks 15 | . 7 1 . 7 Part Schematic 1 | . . . . 1 Robot Analysis 7 | . 5 1 . 1 Prototype ID Bank 2 | . 1 . . 1 Branch Access Points 1 | . . . . 1 Terminal Index 2 | . 1 . . 1 Locate Traps 2 | . . . . 2 Fabricator Hacks . | . . . . . Repair Station Hacks 17 | . 5 4 3 5 Scan Component 9 | . 2 2 2 3 Repair 7 | . 2 2 1 2 Refit 1 | . 1 . . . Recycling Unit Hacks 3 | . . 3 . . Report Inventory 2 | . . 2 . . Retrieve Components 1 | . . 1 . . Scanalyzer . | . . . . . Garrison Access Hacks . | . . . . . Unauthorized Hacks 27 | . 6 8 5 8 Terminals 19 | . 5 4 2 8 Assimilate 1 | . . . . 1 Botnet 16 | . 4 4 2 6 Operators 2 | . 1 . . 1 Fabricators . | . . . . . Repair Stations . | . . . . . Recycling Units 6 | . 1 4 1 . Reject 4 | . 1 2 1 . Mask 2 | . . 2 . . Scanalyzers . | . . . . . Garrison Access 2 | . . . 2 . Intercept 1 | . . . 1 . Watchers 1 | . . . 1 . Data Cores Recovered . | . . . . . Used . | . . . . . Hacking Detections 38 | . 8 11 5 14 Full Trace Events 5 | . 1 . . 4 Feedback Events . | . . . . . Feedback Blocked . | . . . . . Robot Schematics Acquired . | . . . . . Robots Built . | . . . . . Authchips . | . . . . . Time . | . . . . . Total Robot Build Rating . | . . . . . Part Schematics Acquired 1 | . . . . 1 Parts Built . | . . . . . Authchips . | . . . . . Time . | . . . . . Total Part Build Rating . | . . . . . Parts Repaired 7 | . 2 2 1 2 Time 211 | . 58 83 32 38 Parts Recycled . | . . . . . Recycled Matter . | . . . . . Retrieved Matter . | . . . . . Retrieved Components 9 | . . 9 . . Parts Scanalyzed . | . . . . . Part Schematics Acquired . | . . . . . Parts Damaged . | . . . . . Bothacking | -11 -10 -9 -8 -7 ------------ Run | Yrd Mat Mat Mat Fac Used RIF Installer . | . . . . . Robots Hacked . | . . . . . Non-combat . | . . . . . Combat . | . . . . . Robot Hacks Applied . | . . . . . Relay Couplers Released . | . . . . . Fabnet Peak Effective % . | . . . . . Robots Rewired . | . . . . . Allies Hacked . | . . . . . Hacks Repelled . | . . . . . Allies | -11 -10 -9 -8 -7 -------- Run | Yrd Mat Mat Mat Fac Total Allies 1 | . . . . 1 Largest Group 1 | . . . . 1 Highest-Rated Group 10 | . . . . 10 Highest-Rated Ally 10 | . . . . 10 Total Orders . | . . . . . Ally Attacks . | . . . . . Total Damage . | . . . . . Kills . | . . . . . Allies Corrupted . | . . . . . Allies Melted . | . . . . . Intel | -11 -10 -9 -8 -7 ------- Run | Yrd Mat Mat Mat Fac Robot Analysis Total 7 | . 5 1 . 1 Derelict Logs Recovered . | . . . . . Drone Launches . | . . . . . Drone Recoveries . | . . . . . Exploration | -11 -10 -9 -8 -7 ------------- Run | Yrd Mat Mat Mat Fac Turns Passed 5327 | 137 858 2110 989 1233 Spaces Moved 4817 | 79 656 1323 750 2009 Core 28 | 9 . 7 . 12 Treads . | . . . . . Legs . | . . . . . Wheels 2541 | 70 656 1316 499 . Hover . | . . . . . Flight 2248 | . . . 251 1997 Fastest Speed 30 | 50 80 90 34 30 Average Speed 69 | 90 87 107 79 34 Slowest Speed 350 | 100 110 350 115 195 Overloaded Moves . | . . . . . Propulsion Burnouts . | . . . . . Robots Hopped 11 | . . . . 11 Cave-ins Triggered . | . . . . . Exploration Rate (%) 51 | 3 88 88 41 38 Regions Visited 4 Branch Regions . Pre-discovered Areas . | . . . . . Known Exits Taken . | . . . . . Unknown Exits Taken 4 | 1 1 1 1 . Scrap Searched . | . . . . . Spaces Dug . | . . . . . Terrain Destroyed 112 | . 83 29 . . Melee . | . . . . . Projectile . | . . . . . AOE 112 | . 83 29 . . Terrain Rammed . | . . . . . Walls Destroyed . | . . . . . Machines Disabled . | . . . . . Actions | -11 -10 -9 -8 -7 --------- Run | Yrd Mat Mat Mat Fac Total 6172 | 123 853 1772 968 2456 Wait 695 | . 84 243 45 323 Move 4791 | 78 655 1322 749 1987 Hop 11 | . . . . 11 Pick Up 47 | 11 9 12 9 6 Fast Attach 59 | 7 3 16 15 18 Attach 24 | 1 2 7 5 9 Detach 18 | 2 1 5 8 2 Swap 21 | . 6 7 2 6 Drop 71 | 4 10 24 19 14 Fire 383 | 20 83 136 116 28 Melee 15 | . . . . 15 Ram . | . . . . . Kick . | . . . . . Crush . | . . . . . Escape Stasis 37 | . . . . 37 Rewire . | . . . . . Trap . | . . . . . Miscellaneous . | . . . . . Route ------- -11/Scrapyard -10/Materials (discovered 3 exits: *Mat x3) -9/Materials (discovered 4 exits: *Mat x3 / [*Min]) -8/Materials -7/Factory (discovered 4 exits: *Sto x2 / *Low x2) History --------- Turn | Location | Event 35 | -11/Scrapyard | Discovered new exit (range 14) 138 | -11/Scrapyard | Entered Materials 307 | -10/Materials | Build established: Mutant 333 | -10/Materials | Discovered new exit (range 16) 589 | -10/Materials | Discovered new exit (range 4) 737 | -10/Materials | Core integrity fell below 50% 802 | -10/Materials | Discovered new exit (range 16) 836 | -10/Materials | Repaired Assault Rifle 869 | -10/Materials | Repaired Imp. Ion Engine 996 | -10/Materials | Entered another Materials area 996 | -9/Materials | Evolved 2 slots: Utility x2 1246 | -9/Materials | Lost 3 parts (2n1u) 1399 | -9/Materials | Discovered new exit (range 14) 1671 | -9/Materials | Repaired Imp. Assault Rifle 1717 | -9/Materials | Discovered new exit (range 16) 1886 | -9/Materials | Repaired Beam Rifle 1987 | -9/Materials | Discovered new exit (range 11) 2472 | -9/Materials | Discovered new exit (range 5) 2996 | -9/Materials | First assault squad dispatched 3106 | -9/Materials | Entered another Materials area 3106 | -8/Materials | Evolved 2 slots: Propulsion x1, Utility x1 3161 | -8/Materials | Garrison activated, responded to threat 3462 | -8/Materials | Repaired Beam Rifle 3553 | -8/Materials | Garrison activated, responded to threat 3773 | -8/Materials | Lost 5 parts (1p2n2w) 4076 | -8/Materials | Discovered new exit (range 10) 4095 | -8/Materials | Entered Factory 4095 | -7/Factory | Evolved 2 slots: Utility x2 4292 | -7/Factory | Discovered new exit (range 11) 4506 | -7/Factory | Repaired Imp. Assault Rifle 4595 | -7/Factory | Central database locked down 4737 | -7/Factory | Identified exit to Storage 4737 | -7/Factory | Identified exit to Lower Caves 5016 | -7/Factory | Build established: Hacker-Mutant 5078 | -7/Factory | Repaired Flight Unit 5248 | -7/Factory | Lost 4 parts (1n1u2w) 5313 | -7/Factory | Core integrity fell below 50% 5322 | -7/Factory | Core integrity fell below 20% 5328 | -7/Factory | Destroyed by G-47 Trooper with Particle Gun Last Messages --------------- 05283_ Imp. Sensor Array destroyed. 05289_ Mic. Nuclear Core destroyed. 05289_ Hacking Suite destroyed. 05292_ VTOL Module destroyed. 05295_ Stasis field depleted. 05295_ ECM Suite destroyed. 05296_ Flight Unit destroyed. 05296_ U-05 Engineer lays Concrete. 05299_ Critical hit (Burn: +37). 05311_ G-50 Soldier destroyed. 05318_ Critical hit (Burn: +37). 05319_ Imp. Heat Sink destroyed. 05321_ Flight Unit severed. 05323_ M-28 Smith repairs L-41 Fighter. 05325_ M-28 Smith repairs Carbon-fiber Leg. 05326_ Cld. Pulse Rifle severed. 05327_ System corrupted: Heat flow error (+277). 05327_ Acquired Flight Unit. 05328_ Mic. Nuclear Core destroyed. 05328_ Critical hit (Burn: +37). Map ----- +----------------------------------------------------+ | ????????????????????????????????????? | | ????????????????????????????????????? | | ????????????????????????????????????? | | ????????????????????????????????????? | | ????????????????????????????????????? | | ????????????????????????????????????? | | ????????????????????????????????????? | | ????????????????????????????????????? | | ????????????????????????????????????? | | ????????????????????????????????????? | | ?########???????????????????????????? | | ?# #????????????###########????? | | ?# """ #????????????#! #????? | | ?# """ #????????????# [ !#????? | | ?# """ #????????????# ! #????? | | ?# !#????????????# ! !#????? | | ?# """ #????????????#####+#####????? | | ?# """ #????????????????# #????????? | | ?# """ #????????????????# #????????? | | ?# #?##########?????# ########?? | | ?#"S #?# [ #?????# # #?? | | ?#""" #?# #?????# # """ #?? | | ?# "" #?# * ####### # """ /#?? | | ?# #?# g g + ^ + """ #?? | | ?#####+##?# l m # # #?? | | ????# ###=@! " " # = [#! #?? | | ????# ! gg%[ "Y" + = ########?? | | ????# ###!! """ #######!#????????? | | ????## ##?# #???### ###??????? | | ?????# ################# #??????? | | ?????# T ######## | | ?????# "" # | | ?????# ###### # | | ######+## ############ #????# # | | # #? #????????#####+#####??# # | | # #?? #????????#! #??# # | | # #?? #????????# #??# # | | # #??? ##???????# #??# # | | # #?? #???????# #??# # | | # # [ [ #???????############## # | | # + > +?????????? # # | | # # [ #?????????"""""" # # | | # # #?????????"""""" # # | | # #? ?##???????? """""" + | | # #? ?????????# """""" ! # | | # #?? ?????????# + | | # #?? #????????# """""" # | | ########??? #????????# """""" # | | ?????????????????????# """""" = ### | | ?????????????????????# """""" #?? | +----------------------------------------------------+ Best States ------------- Heat Dissipation 53 Energy Generation 15 Energy Capacity 280 Matter Stores 300 Matter Capacity 300 Sight Range 16 Robot Scan Range 15 Terrain Scan Density 10 ECM Strength 1 Additional Mass Support 6 Armor Coverage 450 Propulsion Shielding 66 Evasion (%) 64 Targeting Accuracy 12 Target Analysis 7 Offensive Hacking 20 Defensive Hacking 10 Item Schematics ----------------- Imp. Propulsion Shielding | -7/Factory | Hacked Robot Schematics ------------------ None Fabricated ------------ Nothing Alien Tech Used ----------------- None Achievements -------------- None Challenges ------------ None Game ------ Seed ThermicCooledAnalyzer Manual? 0 Play Time 00:56:11 Cumulative 181.8 hours Start 2024.04.20 @ 17:02:03 End 2024.04.21 @ 22:44:10 Sessions 5 Manual Loads 0 Difficulty Rogue Special Mode None Game No. 172 Rogue 172 Adventurer 0 Explorer 0 Win Type - Total 0 Types 0/0/0/0/0/0/0/0/0 Lore% 55 Gallery% 66 Achievement% 45 Wizard Run 0 Options --------- Layout 2 ASCII 1 Keyboard 1 Movement Numpad Keybinds 0 Fullscreen 2 Font 32/TamsynBold Map View 50x44 Zoom Use 0% Tactical HUD 1 Map Filters NONE Filters NONE Steam 1 RUN: 09309367-ece9-43f2-9a16-38d76bac73bf